Department Family,Entity,Date,Expense Type,Expense Area,Supplier Name,Transaction Number,Amount,Description
Business Unit Name,,Invoice Creation Date,Subjective Description,Cost Center Level 27,Supplier Name,Invoice Number,Invoice Amount,Cost Center Description
York and Scarborough Teaching Hospitals NHS Foundation Trust,York Teaching Hospital Facilities Management LLP BU,01/02/2022 07:10,Work-In-Progress,LLP CREDITORS,Ingenica Solutions Ltd,PSI2035,"58,284.12",LLP Other SNS Projects
York and Scarborough Teaching Hospitals NHS Foundation Trust,York and Scarborough Teaching Hospitals NHS Foundation Trust BU,01/02/2022 10:12,Laboratory External Tests,Creditors,The Leeds Teaching Hospitals NHS Trust,1410184566,"25,763.20",General Haematology
York and Scarborough Teaching Hospitals NHS Foundation Trust,York and Scarborough Teaching Hospitals NHS Foundation Trust BU,01/02/2022 11:10,FP10'S,Creditors,NHS Business Services Authority,1000071960,"58,640.49",Non Medical Prescribers
York and Scarborough Teaching Hospitals NHS Foundation Trust,York Teaching Hospital Facilities Management LLP BU,02/02/2022 07:36,External Contracts : Laundry,LLP CREDITORS,Synergy Health Managed Services Ltd,40004104,"58,842.95",LLP Laundry & Linen - Scarb
York and Scarborough Teaching Hospitals NHS Foundation Trust,York Teaching Hospital Facilities Management LLP BU,02/02/2022 07:38,External Contracts : Laundry,LLP CREDITORS,Synergy Health Managed Services Ltd,40004105,"69,809.15",LLP Linen Contract Sts
York and Scarborough Teaching Hospitals NHS Foundation Trust,York and Scarborough Teaching Hospitals NHS Foundation Trust BU,02/02/2022 10:51,Dressings,Creditors,Hull University Teaching Hospitals NHS Trust,H0039582,"90,714.73",Hull Blood Sciences Department
York and Scarborough Teaching Hospitals NHS Foundation Trust,York and Scarborough Teaching Hospitals NHS Foundation Trust BU,02/02/2022 10:58,Consultant,Creditors,Hull University Teaching Hospitals NHS Trust,H0039612,"264,103.77",Hull Cell Path Med Staff
York and Scarborough Teaching Hospitals NHS Foundation Trust,York and Scarborough Teaching Hospitals NHS Foundation Trust BU,02/02/2022 11:04,Books Journals and Subscriptions,Creditors,Hull University Teaching Hospitals NHS Trust,H0039630,"109,971.00",Chief Executive'S Office
York and Scarborough Teaching Hospitals NHS Foundation Trust,York and Scarborough Teaching Hospitals NHS Foundation Trust BU,02/02/2022 11:39,Raw Materials And Consumables,Creditors,Bayer Plc,824C396499,"91,245.60",Drugs
York and Scarborough Teaching Hospitals NHS Foundation Trust,York and Scarborough Teaching Hospitals NHS Foundation Trust BU,02/02/2022 11:44,Other Debtors < One Year,Creditors,Hcl Doctors Ltd,HDSI0001379,"67,454.99",Consolidated Invoices
York and Scarborough Teaching Hospitals NHS Foundation Trust,York and Scarborough Teaching Hospitals NHS Foundation Trust BU,02/02/2022 13:07,Other Creditors < One Year,Creditors,NHS Supply Chain Co-ordination Limited,1122201589,"345,557.77",Rsc Stores Issue Control
York and Scarborough Teaching Hospitals NHS Foundation Trust,York and Scarborough Teaching Hospitals NHS Foundation Trust BU,02/02/2022 13:11,Contractual Clinical Services,Creditors,Your World Recruitment Ltd,YMS323855,"40,412.00",Endoscopy Suite
York and Scarborough Teaching Hospitals NHS Foundation Trust,York and Scarborough Teaching Hospitals NHS Foundation Trust BU,02/02/2022 13:24,Contractual Clinical Services,Creditors,Your World Recruitment Ltd,YMS329091,"44,602.00",Endoscopy Suite
York and Scarborough Teaching Hospitals NHS Foundation Trust,York and Scarborough Teaching Hospitals NHS Foundation Trust BU,02/02/2022 15:25,Contractual Clinical Services,Creditors,Your World Recruitment Ltd,YMS336512,"44,952.00",Endoscopy Suite
York and Scarborough Teaching Hospitals NHS Foundation Trust,York and Scarborough Teaching Hospitals NHS Foundation Trust BU,02/02/2022 17:07,Raw Materials And Consumables,Creditors,Bayer Plc,824C396500,"91,245.60",Drugs
York and Scarborough Teaching Hospitals NHS Foundation Trust,York and Scarborough Teaching Hospitals NHS Foundation Trust BU,02/02/2022 17:07,Raw Materials And Consumables,Creditors,Bayer Plc,824C396502,"91,245.60",Drugs
York and Scarborough Teaching Hospitals NHS Foundation Trust,York and Scarborough Teaching Hospitals NHS Foundation Trust BU,03/02/2022 07:16,Pacemakers,Creditors,Medtronic Ltd,1204847680,"36,480.00",Cardio/Respiratory Dept
York and Scarborough Teaching Hospitals NHS Foundation Trust,York and Scarborough Teaching Hospitals NHS Foundation Trust BU,03/02/2022 07:16,Laboratory External Tests,Creditors,University Of York,124084,"98,912.79",LAMP Testing
York and Scarborough Teaching Hospitals NHS Foundation Trust,York and Scarborough Teaching Hospitals NHS Foundation Trust BU,03/02/2022 07:16,Med Surg Eqpt Disposable,Creditors,Baxter Healthcare Ltd,22024596,"40,484.58",C.A.P.D.
York and Scarborough Teaching Hospitals NHS Foundation Trust,York and Scarborough Teaching Hospitals NHS Foundation Trust BU,03/02/2022 07:16,Continence Products,Creditors,Paul Hartmann Ltd,71604042,"70,308.61",Continence Home Delivery
York and Scarborough Teaching Hospitals NHS Foundation Trust,York and Scarborough Teaching Hospitals NHS Foundation Trust BU,03/02/2022 07:16,Laboratory Test Kits,Creditors,Cepheid Uk Ltd,9230030540,"99,408.00",Hull Microbiology Department
York and Scarborough Teaching Hospitals NHS Foundation Trust,York and Scarborough Teaching Hospitals NHS Foundation Trust BU,03/02/2022 07:16,Additions - Information Technology,Creditors,iMDsoft Ltd,EI228000053,"57,500.00",Other It Projects
York and Scarborough Teaching Hospitals NHS Foundation Trust,York and Scarborough Teaching Hospitals NHS Foundation Trust BU,03/02/2022 07:16,Healthcare From Commercial Sector,Creditors,Spectrum Wellness UK Ltd ta Spectrum.Life,INV-0365,"41,397.60",Occupational Health
York and Scarborough Teaching Hospitals NHS Foundation Trust,York and Scarborough Teaching Hospitals NHS Foundation Trust BU,03/02/2022 07:16,Additions - Information Technology,Creditors,Specialist Computer Centres Plc,OP/N102480,"75,000.00",Cs830 I.T.Pc'S
York and Scarborough Teaching Hospitals NHS Foundation Trust,York and Scarborough Teaching Hospitals NHS Foundation Trust BU,03/02/2022 07:16,Additions - Information Technology,Creditors,Specialist Computer Centres Plc,OP/N102481,"30,780.00",It902 Storage
York and Scarborough Teaching Hospitals NHS Foundation Trust,York and Scarborough Teaching Hospitals NHS Foundation Trust BU,03/02/2022 07:16,Additions - Information Technology,Creditors,Specialist Computer Centres Plc,OP/N102482,"52,420.80",It902 Storage
York and Scarborough Teaching Hospitals NHS Foundation Trust,York and Scarborough Teaching Hospitals NHS Foundation Trust BU,03/02/2022 07:16,Computer Maintenance,Creditors,Sectra Ltd,SIN003954,"46,350.00",Breast Screening Unit
York and Scarborough Teaching Hospitals NHS Foundation Trust,York and Scarborough Teaching Hospitals NHS Foundation Trust BU,03/02/2022 07:16,Healthcare From Independent Sector,Creditors,Everlight Radiology Limited,SIN008797,"47,844.09",Radiology General
York and Scarborough Teaching Hospitals NHS Foundation Trust,York and Scarborough Teaching Hospitals NHS Foundation Trust BU,03/02/2022 07:16,Healthcare From Independent Sector,Creditors,Everlight Radiology Limited,SIN008804,"50,323.32",Radiology General
York and Scarborough Teaching Hospitals NHS Foundation Trust,York and Scarborough Teaching Hospitals NHS Foundation Trust BU,03/02/2022 07:16,Contractual Clinical Services,Creditors,Your World Recruitment Ltd,YMS334211,"25,752.00",Endoscopy Suite
York and Scarborough Teaching Hospitals NHS Foundation Trust,York and Scarborough Teaching Hospitals NHS Foundation Trust BU,03/02/2022 07:16,Contractual Clinical Services,Creditors,Your World Recruitment Ltd,YMS334802,"44,952.00",Endoscopy Suite
York and Scarborough Teaching Hospitals NHS Foundation Trust,York Teaching Hospital Facilities Management LLP BU,03/02/2022 07:17,Contract : Premises Security,LLP CREDITORS,Ocs Group Uk Ltd,5000475586,"103,423.20",LLP Car Parking - Scarborough
York and Scarborough Teaching Hospitals NHS Foundation Trust,York Teaching Hospital Facilities Management LLP BU,03/02/2022 07:17,Vat Debtor < One Year,LLP CREDITORS,DH OpCo UK Ltd,5970000975,"25,149.60",LLP Dr Vat Debtor
York and Scarborough Teaching Hospitals NHS Foundation Trust,York and Scarborough Teaching Hospitals NHS Foundation Trust BU,03/02/2022 07:21,Specialty Registrar,Creditors,The Leeds Teaching Hospitals NHS Trust,1410184944,"25,000.00",Radiology Medical Staff
York and Scarborough Teaching Hospitals NHS Foundation Trust,York and Scarborough Teaching Hospitals NHS Foundation Trust BU,03/02/2022 07:21,Professional Fees,Creditors,Clarity Workforce Technology Ltd,21224,"27,550.28",Hcl Management Charges
York and Scarborough Teaching Hospitals NHS Foundation Trust,York and Scarborough Teaching Hospitals NHS Foundation Trust BU,03/02/2022 07:21,Healthcare From Independent Sector,Creditors,Nuffield Health,FPSC002528,"27,975.00",Magnetic Resonance Imaging
York and Scarborough Teaching Hospitals NHS Foundation Trust,York and Scarborough Teaching Hospitals NHS Foundation Trust BU,03/02/2022 07:21,Additions - Information Technology,Creditors,AHLC Solutions Limited,INV-0367,"83,584.50",It906 Consultancy/Training
York and Scarborough Teaching Hospitals NHS Foundation Trust,York and Scarborough Teaching Hospitals NHS Foundation Trust BU,03/02/2022 07:21,Fm Computer Contracts,Creditors,AHLC Solutions Limited,INV-0369,"73,800.00",Digital Transformation
York and Scarborough Teaching Hospitals NHS Foundation Trust,York and Scarborough Teaching Hospitals NHS Foundation Trust BU,03/02/2022 07:21,Additions - Information Technology,Creditors,AHLC Solutions Limited,INV-0371,"32,256.00",Other It Projects
York and Scarborough Teaching Hospitals NHS Foundation Trust,York and Scarborough Teaching Hospitals NHS Foundation Trust BU,03/02/2022 07:21,Professional Fees,Creditors,AHLC Solutions Limited,INV-0373,"29,640.00",DIS IG & DPO
York and Scarborough Teaching Hospitals NHS Foundation Trust,York and Scarborough Teaching Hospitals NHS Foundation Trust BU,03/02/2022 07:21,Professional Fees,Creditors,Bio Trading Limited,INV-3024,"63,360.00",DIS Info & Insight
York and Scarborough Teaching Hospitals NHS Foundation Trust,York and Scarborough Teaching Hospitals NHS Foundation Trust BU,03/02/2022 07:21,Computer Hardware Purchases,Creditors,Bio Trading Limited,INV-3025,"116,150.40",Digital Transformation
York and Scarborough Teaching Hospitals NHS Foundation Trust,York and Scarborough Teaching Hospitals NHS Foundation Trust BU,03/02/2022 07:21,Other General Supplies and Services,Creditors,Patient Perspective Ltd,L1667-RCB,"28,560.00",Complaints & Written Communications/Pals
York and Scarborough Teaching Hospitals NHS Foundation Trust,York and Scarborough Teaching Hospitals NHS Foundation Trust BU,03/02/2022 07:21,Additions - Information Technology,Creditors,Xma Ltd,LA97623,"30,978.00",Cs830 I.T.Pc'S
York and Scarborough Teaching Hospitals NHS Foundation Trust,York and Scarborough Teaching Hospitals NHS Foundation Trust BU,03/02/2022 07:21,Contractual Clinical Services,Creditors,Your World Recruitment Ltd,YMS334209,"25,752.00",Endoscopy Suite
York and Scarborough Teaching Hospitals NHS Foundation Trust,York and Scarborough Teaching Hospitals NHS Foundation Trust BU,03/02/2022 07:21,Contractual Clinical Services,Creditors,Your World Recruitment Ltd,YMS334210,"44,952.00",Endoscopy Suite
York and Scarborough Teaching Hospitals NHS Foundation Trust,York and Scarborough Teaching Hospitals NHS Foundation Trust BU,03/02/2022 07:27,Pacemakers,Creditors,Medtronic Ltd,1204865796,"59,040.00",Cardio/Respiratory Dept
York and Scarborough Teaching Hospitals NHS Foundation Trust,York and Scarborough Teaching Hospitals NHS Foundation Trust BU,03/02/2022 07:27,Laboratory Equipment - Maintenance,Creditors,Werfen Ltd,9100391645,"26,155.25",Hull Point of Care Service
York and Scarborough Teaching Hospitals NHS Foundation Trust,York and Scarborough Teaching Hospitals NHS Foundation Trust BU,03/02/2022 11:05,Other Debtors < One Year,Creditors,Hcl Doctors Ltd,HDSI0001340,"50,376.31",Consolidated Invoices
York and Scarborough Teaching Hospitals NHS Foundation Trust,York and Scarborough Teaching Hospitals NHS Foundation Trust BU,03/02/2022 12:37,Rent,Creditors,Dusrolbake Ltd,1230,"42,560.00",Hyms-Student Accomodation
York and Scarborough Teaching Hospitals NHS Foundation Trust,York Teaching Hospital Facilities Management LLP BU,04/02/2022 07:35,Work-In-Progress,LLP CREDITORS,Monks Security Systems Ltd.,56030,"39,827.98",LLP Community Stadium Project
York and Scarborough Teaching Hospitals NHS Foundation Trust,York Teaching Hospital Facilities Management LLP BU,04/02/2022 07:43,Work-In-Progress,LLP CREDITORS,Olympus Keymed,CD2741394,"228,549.29",Medical & Surgical Equip (Replacing Existing Equip)
York and Scarborough Teaching Hospitals NHS Foundation Trust,York and Scarborough Teaching Hospitals NHS Foundation Trust BU,04/02/2022 17:54,Raw Materials And Consumables,Creditors,Alloga Uk Ltd,sin103383600,"46,324.59",Drugs
York and Scarborough Teaching Hospitals NHS Foundation Trust,York Teaching Hospital Facilities Management LLP BU,07/02/2022 07:44,Minor Works,LLP CREDITORS,Mitie Waste And Environmental Services Ltd,228585,"57,858.32",LLP Clinical Waste Disposal (York)
York and Scarborough Teaching Hospitals NHS Foundation Trust,York Teaching Hospital Facilities Management LLP BU,07/02/2022 07:54,External Contracts : Domestics,LLP CREDITORS,Inivos Ltd,FT000451,"35,078.40",LLP Hydrogen Peroxide Vapour Decontamination Service West Zone
York and Scarborough Teaching Hospitals NHS Foundation Trust,York and Scarborough Teaching Hospitals NHS Foundation Trust BU,07/02/2022 11:34,Consultant,Creditors,The Leeds Teaching Hospitals NHS Trust,1410185333,"27,333.58",Oncology Snr Med York
York and Scarborough Teaching Hospitals NHS Foundation Trust,York and Scarborough Teaching Hospitals NHS Foundation Trust BU,07/02/2022 13:27,Professional Fees,Creditors,University Hospitals Birmingham NHS Foundation Trust,OP/Y044497,"32,000.00",Corporate Finance
York and Scarborough Teaching Hospitals NHS Foundation Trust,York and Scarborough Teaching Hospitals NHS Foundation Trust BU,07/02/2022 14:07,Pacemakers,Creditors,Medtronic Ltd,1204826994,"54,000.00",Cardio/Respiratory Dept
York and Scarborough Teaching Hospitals NHS Foundation Trust,York and Scarborough Teaching Hospitals NHS Foundation Trust BU,07/02/2022 14:07,Healthcare From Independent Sector,Creditors,Inhealth Ltd,IHLIN0037887,"42,999.76",Ct
York and Scarborough Teaching Hospitals NHS Foundation Trust,York and Scarborough Teaching Hospitals NHS Foundation Trust BU,07/02/2022 14:07,Computer Hardware Purchases,Creditors,Bio Trading Limited,INV-3027,"39,600.00",Digital Transformation
York and Scarborough Teaching Hospitals NHS Foundation Trust,York and Scarborough Teaching Hospitals NHS Foundation Trust BU,07/02/2022 14:07,Vat Debtor < One Year,Creditors,Bio Trading Limited,INV-3028,"27,000.00",Dr Vat Debtor
York and Scarborough Teaching Hospitals NHS Foundation Trust,York and Scarborough Teaching Hospitals NHS Foundation Trust BU,07/02/2022 14:07,Additions - Information Technology,Creditors,Specialist Computer Centres Plc,OP/N104647,"28,372.09",Other It Projects
York and Scarborough Teaching Hospitals NHS Foundation Trust,York Teaching Hospital Facilities Management LLP BU,07/02/2022 14:07,Lease Rents,LLP CREDITORS,York and Scarborough Teaching Hospitals NHS Foundation Trust,1010083997,"1,872,332.40",LLP Facilities Management Team
York and Scarborough Teaching Hospitals NHS Foundation Trust,York Teaching Hospital Facilities Management LLP BU,07/02/2022 14:07,Contract : Other External,LLP CREDITORS,York and Scarborough Teaching Hospitals NHS Foundation Trust,1010083998,"50,000.40",LLP Facilities Management Team
York and Scarborough Teaching Hospitals NHS Foundation Trust,York Teaching Hospital Facilities Management LLP BU,08/02/2022 06:12,Med Surg Eqpt Mtce Contracts,LLP CREDITORS,Heidelberg Engineering Ltd,HE17443,"29,733.60",LLP Medical Engineering - Sgh
York and Scarborough Teaching Hospitals NHS Foundation Trust,York Teaching Hospital Facilities Management LLP BU,08/02/2022 06:17,Med Surg Eqpt Mtce Contracts,LLP CREDITORS,Heidelberg Engineering Ltd,HE17445,"29,733.60",LLP Medical Engineering - Sgh
York and Scarborough Teaching Hospitals NHS Foundation Trust,York and Scarborough Teaching Hospitals NHS Foundation Trust BU,08/02/2022 07:39,Other Creditors < One Year,Creditors,NHS Supply Chain Co-ordination Limited,1122207767,"363,807.12",Rsc Stores Issue Control
York and Scarborough Teaching Hospitals NHS Foundation Trust,York Teaching Hospital Facilities Management LLP BU,08/02/2022 07:49,Gas,LLP CREDITORS,TotalEnergies Gas & Power Ltd,256328253/22,"41,300.55",LLP Utilities Bridlington Hospital
York and Scarborough Teaching Hospitals NHS Foundation Trust,York and Scarborough Teaching Hospitals NHS Foundation Trust BU,08/02/2022 09:44,Other General Supplies and Services,Creditors,Patient Perspective Ltd,L1667-RCBCR,"-28,560.00",Complaints & Written Communications/Pals
York and Scarborough Teaching Hospitals NHS Foundation Trust,York and Scarborough Teaching Hospitals NHS Foundation Trust BU,08/02/2022 14:50,Professional Fees,Creditors,Clarity Workforce Technology Ltd,21209,"25,367.46",Hcl Management Charges
York and Scarborough Teaching Hospitals NHS Foundation Trust,York and Scarborough Teaching Hospitals NHS Foundation Trust BU,08/02/2022 15:05,Laboratory Test Kits,Creditors,Genmark Diagnostics Uk Ltd,2020/FGB000000029,"37,152.00",Microbiology
York and Scarborough Teaching Hospitals NHS Foundation Trust,York and Scarborough Teaching Hospitals NHS Foundation Trust BU,08/02/2022 18:25,Raw Materials And Consumables,Creditors,Roche Products Ltd,1322227008,"41,994.25",Drugs
York and Scarborough Teaching Hospitals NHS Foundation Trust,York and Scarborough Teaching Hospitals NHS Foundation Trust BU,08/02/2022 18:25,Raw Materials And Consumables,Creditors,Novartis Pharmaceuticals Uk Ltd,92561132,"42,792.41",Drugs
York and Scarborough Teaching Hospitals NHS Foundation Trust,York Teaching Hospital Facilities Management LLP BU,09/02/2022 06:56,Electricity,LLP CREDITORS,Npower Ltd,IN02578916,"51,590.03",LLP Utilities York Hospital
York and Scarborough Teaching Hospitals NHS Foundation Trust,York Teaching Hospital Facilities Management LLP BU,09/02/2022 06:59,Electricity,LLP CREDITORS,Npower Ltd,IN02578919,"57,628.73",LLP Utilities York Hospital
York and Scarborough Teaching Hospitals NHS Foundation Trust,York Teaching Hospital Facilities Management LLP BU,09/02/2022 07:01,Electricity,LLP CREDITORS,Npower Ltd,IN02578906,"49,991.57",LLP Utilities York Hospital
York and Scarborough Teaching Hospitals NHS Foundation Trust,York Teaching Hospital Facilities Management LLP BU,09/02/2022 07:04,Electricity,LLP CREDITORS,Npower Ltd,IN02378098,"75,225.68",LLP Utilities York Hospital
York and Scarborough Teaching Hospitals NHS Foundation Trust,York Teaching Hospital Facilities Management LLP BU,09/02/2022 07:15,Vat Debtor < One Year,LLP CREDITORS,TotalEnergies Gas & Power Ltd,254753405/21,"51,038.70",LLP Dr Vat Debtor
York and Scarborough Teaching Hospitals NHS Foundation Trust,York Teaching Hospital Facilities Management LLP BU,09/02/2022 07:22,Gas,LLP CREDITORS,TotalEnergies Gas & Power Ltd,256328176/22,"237,733.52",LLP Utilities York Hospital
York and Scarborough Teaching Hospitals NHS Foundation Trust,York Teaching Hospital Facilities Management LLP BU,09/02/2022 07:28,Gas,LLP CREDITORS,TotalEnergies Gas & Power Ltd,254753394/21,"51,151.02",LLP Utilities York Hospital
York and Scarborough Teaching Hospitals NHS Foundation Trust,York Teaching Hospital Facilities Management LLP BU,09/02/2022 07:35,Gas,LLP CREDITORS,TotalEnergies Gas & Power Ltd,254753383/21,"49,503.33",LLP Utilities York Hospital
York and Scarborough Teaching Hospitals NHS Foundation Trust,York Teaching Hospital Facilities Management LLP BU,09/02/2022 07:39,Gas,LLP CREDITORS,TotalEnergies Gas & Power Ltd,254753372/21,"51,372.34",LLP Utilities York Hospital
York and Scarborough Teaching Hospitals NHS Foundation Trust,York Teaching Hospital Facilities Management LLP BU,09/02/2022 07:46,Vat Debtor < One Year,LLP CREDITORS,TotalEnergies Gas & Power Ltd,254795942/21,"89,285.37",LLP Dr Vat Debtor
York and Scarborough Teaching Hospitals NHS Foundation Trust,York Teaching Hospital Facilities Management LLP BU,09/02/2022 07:52,Gas,LLP CREDITORS,TotalEnergies Gas & Power Ltd,250731585/21CR,"-150,919.40",LLP Utilities York Hospital
York and Scarborough Teaching Hospitals NHS Foundation Trust,York Teaching Hospital Facilities Management LLP BU,09/02/2022 07:55,Gas,LLP CREDITORS,TotalEnergies Gas & Power Ltd,254795931/21,"91,467.87",LLP Utilities York Hospital
York and Scarborough Teaching Hospitals NHS Foundation Trust,York Teaching Hospital Facilities Management LLP BU,09/02/2022 07:59,Gas,LLP CREDITORS,TotalEnergies Gas & Power Ltd,254775504/21,"40,414.22",LLP Utilities York Hospital
York and Scarborough Teaching Hospitals NHS Foundation Trust,York and Scarborough Teaching Hospitals NHS Foundation Trust BU,09/02/2022 09:10,Computer Maintenance,Creditors,G2 Speech Uk Ltd,20220086,"29,858.90",DIS Corporate Team
York and Scarborough Teaching Hospitals NHS Foundation Trust,York and Scarborough Teaching Hospitals NHS Foundation Trust BU,09/02/2022 09:10,Healthcare From Independent Sector,Creditors,Everlight Radiology Limited,SIN008952,"46,630.87",Radiology General
York and Scarborough Teaching Hospitals NHS Foundation Trust,York and Scarborough Teaching Hospitals NHS Foundation Trust BU,09/02/2022 09:10,Healthcare From Independent Sector,Creditors,Everlight Radiology Limited,SIN008960,"50,238.00",Radiology General
York and Scarborough Teaching Hospitals NHS Foundation Trust,York and Scarborough Teaching Hospitals NHS Foundation Trust BU,09/02/2022 09:10,Contractual Clinical Services,Creditors,Your World Recruitment Ltd,YMS338224,"44,952.00",Endoscopy Suite
York and Scarborough Teaching Hospitals NHS Foundation Trust,York and Scarborough Teaching Hospitals NHS Foundation Trust BU,09/02/2022 11:53,Raw Materials And Consumables,Creditors,Roche Products Ltd,1322227009,"25,464.00",Drugs
York and Scarborough Teaching Hospitals NHS Foundation Trust,York and Scarborough Teaching Hospitals NHS Foundation Trust BU,09/02/2022 13:22,Non Healthcare Services From Foundation Trusts,Creditors,Humber Teaching NHS Foundation Trust,59890751,"87,472.67",Whitby Hospital Property Charges
York and Scarborough Teaching Hospitals NHS Foundation Trust,York and Scarborough Teaching Hospitals NHS Foundation Trust BU,09/02/2022 14:08,Computer Software / License Fees,Creditors,LocumTap Ltd,INV-0657,"108,000.00",HR Teams
York and Scarborough Teaching Hospitals NHS Foundation Trust,York Teaching Hospital Facilities Management LLP BU,10/02/2022 06:52,Work-In-Progress,LLP CREDITORS,Turner & Townsend Cost Management Ltd,PRIV00001666,"28,752.00",East Cost STP (AMM & Infrastructure)
York and Scarborough Teaching Hospitals NHS Foundation Trust,York and Scarborough Teaching Hospitals NHS Foundation Trust BU,10/02/2022 08:24,Raw Materials And Consumables,Creditors,Aah Hospital Service,YORKJAN2022,"226,530.65",Drugs
York and Scarborough Teaching Hospitals NHS Foundation Trust,York and Scarborough Teaching Hospitals NHS Foundation Trust BU,10/02/2022 08:27,Raw Materials And Consumables,Creditors,Aah Hospital Service,SGHJAN22,"73,541.43",Drugs
York and Scarborough Teaching Hospitals NHS Foundation Trust,York Teaching Hospital Facilities Management LLP BU,11/02/2022 06:06,Energy Management Contracts,LLP CREDITORS,Vital Energi Solutions Ltd,SI-12775,"26,868.00",LLP Utilities York Hospital
York and Scarborough Teaching Hospitals NHS Foundation Trust,York Teaching Hospital Facilities Management LLP BU,11/02/2022 07:38,Vat Debtor < One Year,LLP CREDITORS,Huntleigh Healthcare Ltd,16256710,"110,255.80",LLP Dr Vat Debtor
York and Scarborough Teaching Hospitals NHS Foundation Trust,York and Scarborough Teaching Hospitals NHS Foundation Trust BU,11/02/2022 08:58,Other Debtors < One Year,Creditors,Hcl Doctors Ltd,HDSI0001393,"119,022.85",Consolidated Invoices
York and Scarborough Teaching Hospitals NHS Foundation Trust,York and Scarborough Teaching Hospitals NHS Foundation Trust BU,11/02/2022 15:04,Raw Materials And Consumables,Creditors,Bayer Plc,824C397609,"68,434.20",Drugs
York and Scarborough Teaching Hospitals NHS Foundation Trust,York and Scarborough Teaching Hospitals NHS Foundation Trust BU,14/02/2022 08:29,Vat Debtor < One Year,Creditors,York Teaching Hospitals Facilities Management LLP,2020001574,"7,422,726.86",Dr Vat Debtor
York and Scarborough Teaching Hospitals NHS Foundation Trust,York Teaching Hospital Facilities Management LLP BU,14/02/2022 09:55,Work-In-Progress,LLP CREDITORS,Kier Construction - North and Scotland,10279522,"414,267.59",York ED Major Scheme
York and Scarborough Teaching Hospitals NHS Foundation Trust,York and Scarborough Teaching Hospitals NHS Foundation Trust BU,14/02/2022 10:55,Raw Materials And Consumables,Creditors,Csl Behring Uk Ltd,994043527,"59,400.00",Drugs
York and Scarborough Teaching Hospitals NHS Foundation Trust,York and Scarborough Teaching Hospitals NHS Foundation Trust BU,14/02/2022 13:33,Raw Materials And Consumables,Creditors,Qualasept Ltd,SQS0122671,"51,108.36",Drugs
York and Scarborough Teaching Hospitals NHS Foundation Trust,York and Scarborough Teaching Hospitals NHS Foundation Trust BU,15/02/2022 10:11,Raw Materials And Consumables,Creditors,Roche Products Ltd,1322228536,"30,357.12",Drugs
York and Scarborough Teaching Hospitals NHS Foundation Trust,York and Scarborough Teaching Hospitals NHS Foundation Trust BU,15/02/2022 10:42,Healthcare From Commercial Sector,Creditors,Preventx Ltd,PY739672A,"30,063.73",STI Screening COYC
York and Scarborough Teaching Hospitals NHS Foundation Trust,York and Scarborough Teaching Hospitals NHS Foundation Trust BU,15/02/2022 10:44,Tax And Social Security Costs < One Year,Creditors,Hm Revenue And Customs,585PD00115336JAN22,"8,570,429.78",Inland Revenue Income Tax
York and Scarborough Teaching Hospitals NHS Foundation Trust,York Teaching Hospital Facilities Management LLP BU,15/02/2022 11:06,Tax And Social Security Costs < One Year,LLP CREDITORS,Hm Revenue And Customs,475PS01299816JAN22,"394,337.78",LLP Inland Revenue Income Tax
York and Scarborough Teaching Hospitals NHS Foundation Trust,York and Scarborough Teaching Hospitals NHS Foundation Trust BU,15/02/2022 12:22,Healthcare From Commercial Sector,Creditors,Preventx Ltd,PY740647A,"35,141.46",STI Screening COYC
York and Scarborough Teaching Hospitals NHS Foundation Trust,York and Scarborough Teaching Hospitals NHS Foundation Trust BU,15/02/2022 15:13,Additions - Information Technology,Creditors,Parity Medical,18780,"25,494.72",Other It Projects
York and Scarborough Teaching Hospitals NHS Foundation Trust,York and Scarborough Teaching Hospitals NHS Foundation Trust BU,15/02/2022 15:13,Laboratory Chemicals,Creditors,Elitech Uk Ltd,56386,"39,624.00",Hull Blood Sciences Department
York and Scarborough Teaching Hospitals NHS Foundation Trust,York and Scarborough Teaching Hospitals NHS Foundation Trust BU,15/02/2022 15:13,Additions - Information Technology,Creditors,Bio Trading Limited,INV-3054,"58,399.20",I.T.TIF Funded Schemes
York and Scarborough Teaching Hospitals NHS Foundation Trust,York and Scarborough Teaching Hospitals NHS Foundation Trust BU,15/02/2022 15:13,Additions - Information Technology,Creditors,Bio Trading Limited,INV-3055,"79,999.20",I.T.TIF Funded Schemes
York and Scarborough Teaching Hospitals NHS Foundation Trust,York and Scarborough Teaching Hospitals NHS Foundation Trust BU,15/02/2022 15:13,Professional Fees,Creditors,Bio Trading Limited,INV-3056,"69,360.00",Digital Transformation
York and Scarborough Teaching Hospitals NHS Foundation Trust,York and Scarborough Teaching Hospitals NHS Foundation Trust BU,15/02/2022 15:13,Contractual Clinical Services,Creditors,Your World Recruitment Ltd,YMS340003,"44,952.00",Endoscopy Suite
York and Scarborough Teaching Hospitals NHS Foundation Trust,York Teaching Hospital Facilities Management LLP BU,16/02/2022 06:33,Work-In-Progress,LLP CREDITORS,Hodgson Sayers Ltd,SIN060126,"51,418.45",LLP Es614 Building Works - Scarborough
York and Scarborough Teaching Hospitals NHS Foundation Trust,York Teaching Hospital Facilities Management LLP BU,16/02/2022 06:36,Work-In-Progress,LLP CREDITORS,Hodgson Sayers Ltd,SIN060127,"38,520.47",LLP Es614 Building Works - Scarborough
York and Scarborough Teaching Hospitals NHS Foundation Trust,York and Scarborough Teaching Hospitals NHS Foundation Trust BU,16/02/2022 09:37,Other Creditors < One Year,Creditors,NHS Supply Chain Co-ordination Limited,1122210999,"336,214.56",Rsc Stores Issue Control
York and Scarborough Teaching Hospitals NHS Foundation Trust,York and Scarborough Teaching Hospitals NHS Foundation Trust BU,16/02/2022 09:46,Consultant,Creditors,Hull University Teaching Hospitals NHS Trust,H0039800,"139,241.64",Hull Cell Path Med Staff
York and Scarborough Teaching Hospitals NHS Foundation Trust,York and Scarborough Teaching Hospitals NHS Foundation Trust BU,17/02/2022 10:10,Other Debtors < One Year,Creditors,Independent Clinical Services Ltd Ta Thornbury Nursing Services,5719276,"26,802.97",Consolidated Invoices
York and Scarborough Teaching Hospitals NHS Foundation Trust,York and Scarborough Teaching Hospitals NHS Foundation Trust BU,17/02/2022 10:38,Other Debtors < One Year,Creditors,Independent Clinical Services Ltd Ta Thornbury Nursing Services,5731668,"38,586.27",Consolidated Invoices
York and Scarborough Teaching Hospitals NHS Foundation Trust,York and Scarborough Teaching Hospitals NHS Foundation Trust BU,17/02/2022 10:40,Other Debtors < One Year,Creditors,Independent Clinical Services Ltd Ta Thornbury Nursing Services,5742092,"63,657.13",Consolidated Invoices
York and Scarborough Teaching Hospitals NHS Foundation Trust,York and Scarborough Teaching Hospitals NHS Foundation Trust BU,18/02/2022 09:32,B6 Podiatrist,Creditors,Harrogate And District NHS Foundation Trust,2510042984,"62,395.86",Diabetes Snr Medical Staff
York and Scarborough Teaching Hospitals NHS Foundation Trust,York and Scarborough Teaching Hospitals NHS Foundation Trust BU,18/02/2022 09:36,Consultant,Creditors,Harrogate And District NHS Foundation Trust,2510042991,"26,595.00",Rheumatology Snr Med York
York and Scarborough Teaching Hospitals NHS Foundation Trust,York and Scarborough Teaching Hospitals NHS Foundation Trust BU,18/02/2022 09:37,Drugs,Creditors,Lloyds Pharmacy Ltd,104559,"807,758.89",Lloyds Pharmacy
York and Scarborough Teaching Hospitals NHS Foundation Trust,York and Scarborough Teaching Hospitals NHS Foundation Trust BU,18/02/2022 09:40,Non Healthcare Services From Foundation Trusts,Creditors,Harrogate And District NHS Foundation Trust,2510042981,"101,404.00",Harrogate Satellite Renal Unit
York and Scarborough Teaching Hospitals NHS Foundation Trust,York and Scarborough Teaching Hospitals NHS Foundation Trust BU,18/02/2022 09:42,Drugs,Creditors,Lloyds Pharmacy Ltd,105842,"711,066.87",Lloyds Pharmacy
York and Scarborough Teaching Hospitals NHS Foundation Trust,York and Scarborough Teaching Hospitals NHS Foundation Trust BU,18/02/2022 09:55,Drugs,Creditors,Lloyds Pharmacy Ltd,105204,"938,253.23",Lloyds Pharmacy
York and Scarborough Teaching Hospitals NHS Foundation Trust,York and Scarborough Teaching Hospitals NHS Foundation Trust BU,18/02/2022 10:22,Laboratory Test Kits,Creditors,Cepheid Uk Ltd,9230030961,"99,408.00",Hull Microbiology Department
York and Scarborough Teaching Hospitals NHS Foundation Trust,York and Scarborough Teaching Hospitals NHS Foundation Trust BU,18/02/2022 11:53,Raw Materials And Consumables,Creditors,Qualasept Ltd,SQS0124865,"28,515.12",Drugs
York and Scarborough Teaching Hospitals NHS Foundation Trust,York and Scarborough Teaching Hospitals NHS Foundation Trust BU,18/02/2022 15:09,Healthcare From NHS Trusts,Creditors,Hull University Teaching Hospitals NHS Trust,H0039883,"58,330.00",Cystic Fibrosis
York and Scarborough Teaching Hospitals NHS Foundation Trust,York and Scarborough Teaching Hospitals NHS Foundation Trust BU,21/02/2022 21:06,Stationery,Creditors,AHLC Solutions Limited,INV-0388,"70,000.00",DIS Governance & Training Team
York and Scarborough Teaching Hospitals NHS Foundation Trust,York and Scarborough Teaching Hospitals NHS Foundation Trust BU,21/02/2022 21:06,Fm Computer Contracts,Creditors,AHLC Solutions Limited,INV-0389,"35,160.00",Digital Transformation
York and Scarborough Teaching Hospitals NHS Foundation Trust,York and Scarborough Teaching Hospitals NHS Foundation Trust BU,21/02/2022 21:06,Additions - Information Technology,Creditors,AHLC Solutions Limited,INV-0392,"66,000.00",I.T.TIF Funded Schemes
York and Scarborough Teaching Hospitals NHS Foundation Trust,York and Scarborough Teaching Hospitals NHS Foundation Trust BU,21/02/2022 21:06,Professional Fees,Creditors,AHLC Solutions Limited,INV-0393,"81,900.00",DIS Info & Insight
York and Scarborough Teaching Hospitals NHS Foundation Trust,York and Scarborough Teaching Hospitals NHS Foundation Trust BU,22/02/2022 06:52,Legal Fees,Creditors,Wolters Kluwer (Uk) Ltd,7689795,"49,609.95",Medical Governance Office
York and Scarborough Teaching Hospitals NHS Foundation Trust,York and Scarborough Teaching Hospitals NHS Foundation Trust BU,22/02/2022 09:09,Contractual Clinical Services,Creditors,Your World Recruitment Ltd,YMS333123,"35,611.60",Endoscopy Suite
York and Scarborough Teaching Hospitals NHS Foundation Trust,York and Scarborough Teaching Hospitals NHS Foundation Trust BU,22/02/2022 10:10,Contractual Clinical Services,Creditors,Your World Recruitment Ltd,YMS341766,"44,952.00",Endoscopy Suite
York and Scarborough Teaching Hospitals NHS Foundation Trust,York Teaching Hospital Facilities Management LLP BU,22/02/2022 10:59,Lease Rents,LLP CREDITORS,Cbre Ltd,1100574,"39,000.00",LLP Transport & Medical Records Property Charges
York and Scarborough Teaching Hospitals NHS Foundation Trust,York and Scarborough Teaching Hospitals NHS Foundation Trust BU,22/02/2022 11:10,Other Creditors < One Year,Creditors,NHS Supply Chain Co-ordination Limited,1122217089,"355,517.63",Rsc Stores Issue Control
York and Scarborough Teaching Hospitals NHS Foundation Trust,York and Scarborough Teaching Hospitals NHS Foundation Trust BU,22/02/2022 13:12,Computer Software / License Fees,Creditors,Tendable Limited,227001,"66,357.60",Senior Nurse Management
York and Scarborough Teaching Hospitals NHS Foundation Trust,York and Scarborough Teaching Hospitals NHS Foundation Trust BU,22/02/2022 13:39,Additions - Information Technology,Creditors,Xma Ltd,LA96334,"223,416.00",Cs830 I.T.Pc'S
York and Scarborough Teaching Hospitals NHS Foundation Trust,York and Scarborough Teaching Hospitals NHS Foundation Trust BU,22/02/2022 14:27,Raw Materials And Consumables,Creditors,Bayer Plc,824C400596,"45,622.80",Drugs
York and Scarborough Teaching Hospitals NHS Foundation Trust,York and Scarborough Teaching Hospitals NHS Foundation Trust BU,22/02/2022 14:27,Raw Materials And Consumables,Creditors,Bayer Plc,824C400849,"45,622.80",Drugs
York and Scarborough Teaching Hospitals NHS Foundation Trust,York and Scarborough Teaching Hospitals NHS Foundation Trust BU,22/02/2022 17:49,Raw Materials And Consumables,Creditors,Allergan Ltd,7060592872,"28,788.00",Drugs
York and Scarborough Teaching Hospitals NHS Foundation Trust,York and Scarborough Teaching Hospitals NHS Foundation Trust BU,22/02/2022 17:49,Raw Materials And Consumables,Creditors,Bayer Plc,824C399348,"91,245.60",Drugs
York and Scarborough Teaching Hospitals NHS Foundation Trust,York and Scarborough Teaching Hospitals NHS Foundation Trust BU,22/02/2022 17:49,Raw Materials And Consumables,Creditors,Bayer Plc,824C399349,"91,245.60",Drugs
York and Scarborough Teaching Hospitals NHS Foundation Trust,York and Scarborough Teaching Hospitals NHS Foundation Trust BU,22/02/2022 17:49,Raw Materials And Consumables,Creditors,Bayer Plc,824C399350,"91,245.60",Drugs
York and Scarborough Teaching Hospitals NHS Foundation Trust,York Teaching Hospital Facilities Management LLP BU,23/02/2022 06:27,Other Creditors < One Year,LLP CREDITORS,NHS Supply Chain Co-ordination Limited,1122217269,"286,979.11",LLP Rsc Stores Issue Control
York and Scarborough Teaching Hospitals NHS Foundation Trust,York and Scarborough Teaching Hospitals NHS Foundation Trust BU,23/02/2022 07:54,Other Debtors < One Year,Creditors,Hcl Doctors Ltd,HDSI0001409,"63,359.32",Consolidated Invoices
York and Scarborough Teaching Hospitals NHS Foundation Trust,York Teaching Hospital Facilities Management LLP BU,24/02/2022 06:16,Vat Debtor < One Year,LLP CREDITORS,Quirepace Ltd,135848,"28,320.00",LLP Dr Vat Debtor
York and Scarborough Teaching Hospitals NHS Foundation Trust,York Teaching Hospital Facilities Management LLP BU,24/02/2022 06:25,Work-In-Progress,LLP CREDITORS,Portakabin Ltd,915073151,"156,919.34",ICU Expansion York
York and Scarborough Teaching Hospitals NHS Foundation Trust,York Teaching Hospital Facilities Management LLP BU,24/02/2022 06:59,Work-In-Progress,LLP CREDITORS,H Pickup Mechanical & Electrical Services Ltd,INV-15553,"60,000.00",SGH Helipad
York and Scarborough Teaching Hospitals NHS Foundation Trust,York and Scarborough Teaching Hospitals NHS Foundation Trust BU,24/02/2022 07:51,Healthcare From Independent Sector,Creditors,Inhealth Ltd,IHLIN0037360,"42,835.00",Ct
York and Scarborough Teaching Hospitals NHS Foundation Trust,York Teaching Hospital Facilities Management LLP BU,25/02/2022 08:59,Professional Fees,LLP CREDITORS,MHA Architects,122207,"35,424.60",LLP Special Programme General
